fUSD/lending_fUSD_20250204
["ID","MTS","AMOUNT","RATE_DAILY","PERIOD"]
[351623835,1738668644237,-500.0,9.307e-05,2]
[351623836,1738668644247,-555.9,9.307e-05,2]
[351623837,1738668644257,-692.55,9.307e-05,2]
[351623838,1738668644267,-622.16,9.307e-05,2]
[351623839,1738668644277,-500.0,9.307e-05,2]
[351623840,1738668644287,-197.40024141,9.307e-05,2]
[351623841,1738668644303,-601.28975859,9.307e-05,2]
[351623842,1738668644313,-34.71024141,9.307e-05,2]
[351623843,1738668644330,-465.28975859,9.307e-05,2]
[351623844,1738668644340,-608.32,9.307e-05,2]
[351623845,1738668644350,-448.63151368,9.307e-05,2]
[351623846,1738668644359,-703.64,9.307e-05,2]
[351623847,1738668644369,-500.0,9.307e-05,2]
[351623848,1738668644379,-519.27,9.307e-05,2]
[351623849,1738668644389,-500.0,9.307e-05,2]
[351623850,1738668644399,-500.0,9.307e-05,2]
[351623851,1738668644408,-500.0,9.307e-05,2]
[351623852,1738668644418,-500.0,9.307e-05,2]
[351623853,1738668644432,-296.31872774,9.307e-05,2]
[351623854,1738668644444,-203.68127226,9.307e-05,2]
[351623855,1738668644454,-265.6141688,9.307e-05,2]
[351623856,1738668644653,-500.0,9.033e-05,2]
[351623857,1738668644663,-1108.0,9.14e-05,2]
[351623858,1738668644672,-848.9958312,9.307e-05,2]
[351623859,1738668644684,-500.0,9.307e-05,2]
[351623860,1738668644693,-500.0,9.307e-05,2]
[351623861,1738668644703,-656.44,9.307e-05,2]
[351623862,1738668644712,-712.81,9.307e-05,2]
[351623863,1738668644722,-774.92,9.307e-05,2]
[351623864,1738668644731,-500.0,9.307e-05,2]
[351623865,1738668644741,-500.0,9.307e-05,2]
[351623866,1738668644751,-874.57,9.307e-05,2]
[351623867,1738668644760,-500.0,9.307e-05,2]
[351623868,1738668644770,-637.69,9.307e-05,2]
[351623869,1738668644780,-500.0,9.307e-05,2]
[351623870,1738668644789,-530.24,9.307e-05,2]
[351623871,1738668644799,-672.02,9.307e-05,2]
[351623872,1738668644808,-500.0,9.307e-05,2]
[351623873,1738668644819,-744.95,9.307e-05,2]
[351623874,1738668644828,-1065.85,9.307e-05,2]
[351623875,1738668644838,-420.43471297,9.307e-05,2]
[351623876,1738668644922,-79.56528703,9.307e-05,2]
[351623877,1738668644938,-296.55461826,9.307e-05,2]
[351623878,1738668644952,-203.44538174,9.307e-05,2]
[351623879,1738668644971,-500.0,9.307e-05,2]
[351623880,1738668644989,-526.76,9.307e-05,2]
[351623881,1738668645001,-500.0,9.307e-05,2]
[351623882,1738668645011,-809.89,9.307e-05,2]
[351623883,1738668645021,-148.73568784,9.307e-05,2]
[351623884,1738668645036,-351.26431216,9.307e-05,2]
[351623885,1738668645047,-533.24,9.307e-05,2]
[351623886,1738668645058,-672.7,9.307e-05,2]
[351623887,1738668645068,-898.1,9.307e-05,2]
[351623888,1738668645077,-686.79,9.307e-05,2]
[351623889,1738668645087,-500.0,9.307e-05,2]
[351623890,1738668645097,-879.9,9.307e-05,2]
[351623891,1738668645107,-919.00818622,9.307e-05,2]
[351623892,1738668645119,-96.42181378,9.307e-05,2]
[351623893,1738668645129,-500.0,9.307e-05,2]
[351623894,1738668645139,-500.0,9.307e-05,2]
[351623895,1738668645148,-600.2,9.307e-05,2]
[351623896,1738668645158,-842.24,9.307e-05,2]
[351623897,1738668645167,-555.27,9.307e-05,2]
[351623898,1738668645182,-500.0,9.307e-05,2]
[351623899,1738668645191,-221.15,9.307e-05,2]
[351623900,1738668645202,-529.66270767,9.307e-05,2]
[351623901,1738668645214,-1711.96729233,9.307e-05,2]
[351623902,1738668645223,-373.09,9.307e-05,2]
[351623903,1738668645233,-500.0,9.307e-05,2]
[351623904,1738668645242,-500.0,9.307e-05,2]
[351623905,1738668645252,-297.96,9.307e-05,2]
[351623906,1738668645263,-500.0,9.307e-05,2]
[351623907,1738668645272,-245.6225765,9.307e-05,2]
[351623908,1738668645283,-530.1174235,9.307e-05,2]
[351623909,1738668645293,-500.0,9.307e-05,2]
[351623910,1738668645303,-1580.1,9.307e-05,2]
[351623911,1738668645312,-794.25,9.307e-05,2]
[351623912,1738668645322,-528.89721594,9.307e-05,2]
[351623913,1738668645334,-379.55278406,9.307e-05,2]
[351623914,1738668645344,-1132.83,9.307e-05,2]
[351623915,1738668645354,-227.7086228,9.307e-05,2]
[351623916,1738668645365,-417.2013772,9.307e-05,2]
[351623917,1738668645375,-1003.31,9.307e-05,2]
[351623918,1738668645385,-1031.13,9.307e-05,2]
[351623919,1738668645394,-674.52,9.307e-05,2]
[351623920,1738668645404,-413.69499171,9.307e-05,2]
[351623921,1738668645414,-950.47,9.307e-05,2]
[351623922,1738668645423,-1052.45,9.307e-05,2]
[351623923,1738668645433,-500.0,9.307e-05,2]
[351623924,1738668645442,-747.06,9.307e-05,2]
[351623925,1738668645451,-500.0,9.307e-05,2]
[351623926,1738668645460,-568.28,9.307e-05,2]
[351623927,1738668645469,-500.0,9.307e-05,2]
[351623928,1738668645478,-500.0,9.307e-05,2]
[351623929,1738668645487,-500.0,9.307e-05,2]
[351623930,1738668645497,-1486.24,9.307e-05,2]
[351623931,1738668645508,-500.0,9.307e-05,2]
[351623932,1738668645517,-163.24,9.307e-05,2]
[351623933,1738668645526,-1154.96,9.307e-05,2]
[351623934,1738668645535,-500.0,9.307e-05,2]
[351623935,1738668645545,-763.19,9.307e-05,2]
[351623936,1738668645554,-416.47199967,9.307e-05,2]
[351623937,1738668645566,-196.10800033,9.307e-05,2]
[351623938,1738668645575,-315.39199957,9.307e-05,2]
[351623939,1738668645586,-184.60800043,9.307e-05,2]
[351623940,1738668645595,-500.0,9.307e-05,2]
[351623941,1738668645604,-990.68,9.307e-05,2]
[351623942,1738668645613,-500.0,9.307e-05,2]
[351623943,1738668645622,-630.8,9.307e-05,2]
[351623945,1738668645631,-843.93,9.307e-05,2]
[351623947,1738668645641,-500.0,9.307e-05,2]
[351623949,1738668645650,-622.66,9.307e-05,2]
[351623951,1738668645659,-500.0,9.307e-05,2]
[351623953,1738668645669,-500.0,9.307e-05,2]
[351623955,1738668645680,-756.2,9.307e-05,2]
[351623956,1738668645689,-988.0,9.307e-05,2]
[351623957,1738668645699,-500.0,9.307e-05,2]
[351623958,1738668645708,-365.78,9.307e-05,2]
[351623959,1738668645717,-594.03,9.307e-05,2]
[351623960,1738668645726,-500.0,9.307e-05,2]
[351623961,1738668645735,-657.74,9.307e-05,2]
[351623962,1738668645744,-500.0,9.307e-05,2]
[351623963,1738668645753,-500.0,9.307e-05,2]
[351623964,1738668645762,-500.0,9.307e-05,2]
[351623965,1738668645771,-500.0,9.307e-05,2]
[351623966,1738668645780,-661.28,9.307e-05,2]
[351623967,1738668645789,-558.24,9.307e-05,2]
[351623968,1738668645798,-743.93,9.307e-05,2]
[351623969,1738668645808,-757.05,9.307e-05,2]
[351623970,1738668645817,-500.0,9.307e-05,2]
[351623971,1738668645827,-959.51,9.307e-05,2]
[351623972,1738668645836,-500.0,9.307e-05,2]
[351623973,1738668645845,-500.0,9.307e-05,2]
[351623974,1738668645854,-574.52,9.307e-05,2]
[351623975,1738668645863,-676.14,9.307e-05,2]
[351623976,1738668645872,-500.0,9.307e-05,2]
[351623977,1738668645882,-539.88,9.307e-05,2]
[351623978,1738668645891,-500.0,9.307e-05,2]
[351623979,1738668645902,-500.0,9.307e-05,2]
[351623980,1738668645911,-249.02199957,9.307e-05,2]
[351623981,1738668645929,-250.97800043,9.307e-05,2]
[351623982,1738668645939,-500.0,9.307e-05,2]
[351623983,1738668645949,-1152.34,9.307e-05,2]
[351623984,1738668645960,-500.0,9.307e-05,2]
[351623985,1738668645972,-500.0,9.307e-05,2]
[351623986,1738668645982,-591.97,9.307e-05,2]
[351623987,1738668645991,-500.0,9.307e-05,2]
[351623988,1738668646000,-500.0,9.307e-05,2]
[351623989,1738668646010,-132.58242055,9.307e-05,2]
[351623990,1738668646022,-431.05757945,9.307e-05,2]
[351623991,1738668646031,-500.0,9.307e-05,2]
[351623992,1738668646040,-501.42,9.307e-05,2]
[351623993,1738668646050,-157.57298473,9.307e-05,2]
[351623994,1738668646061,-1584.03701527,9.307e-05,2]
[351623995,1738668646070,-500.0,9.307e-05,2]
[351623996,1738668646079,-500.0,9.307e-05,2]
[351623997,1738668646088,-500.0,9.307e-05,2]
[351623998,1738668646097,-980.29,9.307e-05,2]
[351623999,1738668646107,-581.03,9.307e-05,2]
[351624000,1738668646116,-457.8,9.307e-05,2]
[351624001,1738668646125,-500.0,9.308e-05,2]
[351624002,1738668646135,-500.0,9.308e-05,2]
[351624003,1738668646144,-500.0,9.308e-05,2]
[351624004,1738668646153,-500.0,9.308e-05,2]
[351624005,1738668646162,-500.0,9.308e-05,2]
[351624006,1738668646171,-500.0,9.308e-05,2]
[351624007,1738668646184,-500.0,9.308e-05,2]
[351624008,1738668646192,-500.0,9.308e-05,2]
[351624009,1738668646201,-384.74685171,9.308e-05,2]
[351624010,1738668646211,-500.0,9.308e-05,2]
[351624011,1738668646220,-500.0,9.308e-05,2]
[351624012,1738668646229,-500.0,9.308e-05,2]
[351624013,1738668646239,-500.0,9.308e-05,2]
[351624014,1738668646248,-500.0,9.308e-05,2]
[351624015,1738668646257,-500.0,9.308e-05,2]
[351624016,1738668646266,-500.0,9.308e-05,2]
[351624017,1738668646275,-500.0,9.308e-05,2]
[351624018,1738668646284,-500.0,9.308e-05,2]
[351624019,1738668646294,-500.0,9.308e-05,2]
[351624020,1738668646303,-1036.12,9.308e-05,2]
[351624021,1738668646312,-646.32,9.308e-05,2]
[351624022,1738668646322,-500.0,9.308e-05,2]
[351624023,1738668646331,-680.94,9.308e-05,2]
[351624024,1738668646343,-500.0,9.308e-05,2]
[351624025,1738668646352,-500.0,9.308e-05,2]
[351624027,1738668646361,-500.0,9.308e-05,2]
[351624029,1738668646371,-592.48,9.308e-05,2]
[351624031,1738668646379,-500.0,9.308e-05,2]
[351624032,1738668646388,-500.0,9.308e-05,2]
[351624034,1738668646397,-500.0,9.308e-05,2]
[351624037,1738668646407,-500.0,9.308e-05,2]
[351624038,1738668646418,-500.0,9.308e-05,2]
[351624040,1738668646431,-500.0,9.308e-05,2]
[351624043,1738668646440,-500.0,9.308e-05,2]
[351624045,1738668646449,-500.0,9.308e-05,2]
[351624047,1738668646459,-500.0,9.308e-05,2]
[351624049,1738668646468,-500.0,9.308e-05,2]
[351624051,1738668646477,-511.56,9.308e-05,2]
[351624053,1738668646487,-500.0,9.308e-05,2]
[351624055,1738668646497,-709.22,9.308e-05,2]
[351624057,1738668646506,-500.0,9.308e-05,2]
[351624059,1738668646515,-500.0,9.308e-05,2]
[351624061,1738668646524,-500.0,9.308e-05,2]
[351624063,1738668646534,-500.0,9.308e-05,2]
[351624065,1738668646543,-500.0,9.308e-05,2]
[351624067,1738668646553,-500.0,9.308e-05,2]
[351624069,1738668646563,-500.0,9.308e-05,2]
[351624071,1738668646572,-500.0,9.308e-05,2]
[351624073,1738668646581,-500.0,9.309e-05,2]
[351624075,1738668646591,-500.0,9.309e-05,2]
[351624077,1738668646600,-500.0,9.309e-05,2]
[351624079,1738668646609,-500.0,9.309e-05,2]
[351624080,1738668646618,-500.0,9.309e-05,2]
[351624082,1738668646627,-1000.0,9.317e-05,2]
[351624084,1738668646637,-500.0,9.444e-05,2]
[351624095,1738668646769,-500.0,9.444e-05,2]
[351624096,1738668646779,-500.0,9.444e-05,2]
[351624097,1738668646789,-500.0,9.444e-05,2]
[351624098,1738668646799,-500.0,9.444e-05,2]
[351624099,1738668646808,-500.0,9.444e-05,2]
[351624100,1738668646820,-523.2,9.444e-05,2]
[351624101,1738668646829,-500.0,9.444e-05,2]
[351624102,1738668646840,-500.0,9.444e-05,2]
[351624103,1738668646850,-500.0,9.444e-05,2]
[351624104,1738668646861,-500.0,9.444e-05,2]
[351624105,1738668646870,-500.0,9.444e-05,2]
[351624106,1738668646881,-500.0,9.444e-05,2]
[351624107,1738668646890,-500.0,9.444e-05,2]
[351624108,1738668646899,-500.0,9.444e-05,2]
[351624109,1738668646908,-500.0,9.444e-05,2]
[351624110,1738668646917,-500.0,9.444e-05,2]
[351624111,1738668646929,-500.0,9.444e-05,2]
[351624112,1738668646938,-500.0,9.444e-05,2]
[351624113,1738668646948,-500.0,9.444e-05,2]
[351624114,1738668646958,-500.0,9.444e-05,2]
[351624115,1738668646970,-500.0,9.444e-05,2]
[351624116,1738668646980,-500.0,9.444e-05,2]
[351624117,1738668646990,-500.0,9.444e-05,2]
[351624118,1738668646999,-500.0,9.444e-05,2]
[351624119,1738668647009,-500.0,9.444e-05,2]
[351624120,1738668647018,-500.0,9.444e-05,2]
[351624121,1738668647027,-500.0,9.444e-05,2]
[351624122,1738668647036,-500.0,9.444e-05,2]
[351624123,1738668647046,-500.0,9.444e-05,2]
[351624124,1738668647056,-500.0,9.444e-05,2]
[351624125,1738668647066,-500.0,9.444e-05,2]
[351624126,1738668647075,-500.0,9.444e-05,2]
[351624127,1738668647084,-336.55038489,9.444e-05,2]
[351624128,1738668647094,-554.62736419,9.444e-05,2]
[351624129,1738668647103,-500.0,9.444e-05,2]
[351624130,1738668647112,-500.0,9.444e-05,2]
[351624131,1738668647122,-591.82697378,9.444e-05,2]
[351624132,1738668647131,-500.0,9.444e-05,2]
[351624133,1738668647140,-500.0,9.444e-05,2]
[351624134,1738668647149,-500.0,9.444e-05,2]
[351624135,1738668647159,-528.69,9.444e-05,2]
[351624136,1738668647169,-500.0,9.444e-05,2]
[351624137,1738668647182,-500.0,9.444e-05,2]
[351624138,1738668647191,-500.0,9.444e-05,2]
[351624139,1738668647200,-419.163753,9.444e-05,2]
[351624140,1738668647210,-500.0,9.444e-05,2]
[351624141,1738668647219,-500.0,9.444e-05,2]
[351624142,1738668647229,-410.20533,9.444e-05,2]
[351624143,1738668647239,-370.03398001,9.444e-05,2]
[351624144,1738668647248,-500.0,9.444e-05,2]
[351624145,1738668647258,-500.0,9.444e-05,2]
[351624146,1738668647268,-500.0,9.444e-05,2]
[351624147,1738668647278,-162.51216245,9.444e-05,2]
[351624148,1738668647287,-500.0,9.444e-05,2]
[351624149,1738668647296,-500.0,9.444e-05,2]
[351624150,1738668647306,-500.0,9.444e-05,2]
[351624151,1738668647316,-512.08,9.444e-05,2]
[351624152,1738668647325,-500.0,9.444e-05,2]
[351624153,1738668647335,-500.0,9.444e-05,2]
[351624154,1738668647344,-500.0,9.444e-05,2]
[351624155,1738668647354,-405.31677291,9.444e-05,2]
[351624156,1738668647364,-500.0,9.444e-05,2]
[351624157,1738668647373,-500.0,9.444e-05,2]
[351624158,1738668647383,-500.0,9.444e-05,2]
[351624159,1738668647393,-500.0,9.444e-05,2]
[351624160,1738668647402,-359.57,9.444e-05,2]
[351624161,1738668647411,-573.14,9.444e-05,2]
[351624162,1738668647421,-500.0,9.444e-05,2]
[351624163,1738668647434,-500.0,9.444e-05,2]
[351624164,1738668647443,-500.0,9.444e-05,2]
[351624165,1738668647452,-500.0,9.444e-05,2]
[351624166,1738668647462,-500.0,9.444e-05,2]
[351624167,1738668647472,-209.31717666,9.444e-05,2]
[351624168,1738668647482,-500.0,9.444e-05,2]
[351624169,1738668647491,-500.0,9.444e-05,2]
[351624170,1738668647500,-500.0,9.444e-05,2]
[351624171,1738668647511,-500.0,9.444e-05,2]
[351624172,1738668647520,-500.0,9.444e-05,2]
[351624173,1738668647530,-500.0,9.444e-05,2]
[351624174,1738668647539,-500.0,9.444e-05,2]
[351624175,1738668647548,-500.0,9.444e-05,2]
[351624176,1738668647557,-500.0,9.444e-05,2]
[351624177,1738668647567,-500.0,9.444e-05,2]
[351624178,1738668647576,-500.0,9.444e-05,2]
[351624179,1738668647585,-348.00581218,9.444e-05,2]
[351624180,1738668647594,-500.0,9.444e-05,2]
[351624181,1738668647604,-500.0,9.444e-05,2]
[351624182,1738668647613,-500.0,9.444e-05,2]
[351624183,1738668647623,-680.57,9.444e-05,2]
[351624184,1738668647632,-500.0,9.444e-05,2]
[351624185,1738668647641,-500.0,9.444e-05,2]
[351624186,1738668647651,-500.0,9.444e-05,2]
[351624187,1738668647661,-500.0,9.444e-05,2]
[351624188,1738668647670,-585.37,9.444e-05,2]
[351624189,1738668647682,-842.21,9.444e-05,2]
[351624190,1738668647692,-626.26,9.444e-05,2]
[351624191,1738668647701,-500.0,9.444e-05,2]
[351624192,1738668647710,-504.15,9.444e-05,2]
[351624193,1738668647721,-500.0,9.444e-05,2]
[351624194,1738668647730,-559.74,9.444e-05,2]
[351624195,1738668647740,-500.0,9.444e-05,2]
[351624196,1738668647750,-573.03,9.444e-05,2]
[351624197,1738668647760,-500.0,9.444e-05,2]
[351624198,1738668647769,-555.9,9.444e-05,2]
[351624199,1738668647779,-692.55,9.444e-05,2]
[351624200,1738668647789,-500.0,9.444e-05,2]
[351624201,1738668647799,-798.69,9.444e-05,2]
[351624202,1738668647808,-500.0,9.444e-05,2]
[351624203,1738668647817,-608.32,9.444e-05,2]
[351624204,1738668647826,-703.64,9.444e-05,2]
[351624205,1738668647837,-500.0,9.444e-05,2]
[351624206,1738668647847,-500.0,9.444e-05,2]
[351624207,1738668647856,-519.27,9.444e-05,2]
[351624208,1738668647865,-500.0,9.444e-05,2]
[351624209,1738668647875,-500.0,9.444e-05,2]
[351624210,1738668647884,-500.0,9.444e-05,2]
[351624211,1738668647893,-500.0,9.444e-05,2]
[351624212,1738668647903,-1114.61,9.444e-05,2]
[351624213,1738668647912,-500.0,9.444e-05,2]
[351624214,1738668647921,-500.0,9.444e-05,2]
[351624215,1738668647931,-656.44,9.444e-05,2]
[351624216,1738668647941,-712.81,9.444e-05,2]
[351624217,1738668647950,-774.92,9.444e-05,2]
[351624218,1738668647960,-500.0,9.444e-05,2]
[351624219,1738668647977,-500.0,9.444e-05,2]
[351624220,1738668647986,-500.0,9.444e-05,2]
[351624221,1738668647995,-874.57,9.444e-05,2]
[351624222,1738668648005,-637.69,9.444e-05,2]
[351624223,1738668648015,-500.0,9.444e-05,2]
[351624224,1738668648024,-530.24,9.444e-05,2]
[351624225,1738668648033,-672.02,9.444e-05,2]
[351624226,1738668648043,-287.69,9.444e-05,2]
[351624227,1738668648052,-744.95,9.444e-05,2]
[351624228,1738668648063,-1065.85,9.444e-05,2]
[351624229,1738668648072,-500.0,9.444e-05,2]
[351624230,1738668648082,-500.0,9.444e-05,2]
[351624231,1738668648092,-500.0,9.444e-05,2]
[351624232,1738668648102,-526.76,9.444e-05,2]
[351624233,1738668648112,-500.0,9.444e-05,2]
[351624234,1738668648123,-809.89,9.444e-05,2]
[351624235,1738668648133,-500.0,9.444e-05,2]
[351624236,1738668648143,-533.24,9.444e-05,2]
[351624237,1738668648154,-672.7,9.444e-05,2]
[351624238,1738668648167,-898.1,9.444e-05,2]
[351624239,1738668648180,-686.79,9.444e-05,2]
[351624240,1738668648192,-500.0,9.444e-05,2]
[351624241,1738668648202,-879.9,9.444e-05,2]
[351624242,1738668648212,-1015.43,9.444e-05,2]
[351624243,1738668648222,-615.33226905,9.444e-05,2]
[351624244,1738668648232,-500.0,9.444e-05,2]
[351624245,1738668648242,-600.2,9.444e-05,2]
[351624246,1738668648251,-842.24,9.444e-05,2]
[351624247,1738668648261,-555.27,9.444e-05,2]
[351624248,1738668648270,-500.0,9.444e-05,2]
[351624249,1738668648280,-2241.63,9.444e-05,2]
[351624250,1738668648290,-500.0,9.444e-05,2]
[351624251,1738668648300,-500.0,9.444e-05,2]
[351624252,1738668648310,-500.0,9.444e-05,2]
[351624253,1738668648320,-775.74,9.444e-05,2]
[351624254,1738668648330,-500.0,9.444e-05,2]
[351624255,1738668648340,-1580.1,9.444e-05,2]
[351624256,1738668648350,-794.25,9.444e-05,2]
[351624257,1738668648360,-908.45,9.444e-05,2]
[351624258,1738668648369,-1132.83,9.444e-05,2]
[351624259,1738668648380,-644.91,9.444e-05,2]
[351624260,1738668648391,-1003.31,9.444e-05,2]
[351624261,1738668648400,-1031.13,9.444e-05,2]
[351624262,1738668648410,-674.52,9.444e-05,2]
[351624263,1738668648419,-950.47,9.444e-05,2]
[351624264,1738668648432,-1052.45,9.444e-05,2]
[351624265,1738668648442,-500.0,9.444e-05,2]
[351624266,1738668648452,-747.06,9.444e-05,2]
[351624267,1738668648462,-568.28,9.444e-05,2]
[351624268,1738668648471,-500.0,9.444e-05,2]
[351624269,1738668648481,-500.0,9.444e-05,2]
[351624270,1738668648490,-1486.24,9.444e-05,2]
[351624271,1738668648500,-500.0,9.444e-05,2]
[351624272,1738668648509,-1154.96,9.444e-05,2]
[351624273,1738668648518,-500.0,9.444e-05,2]
[351624274,1738668648528,-763.19,9.444e-05,2]
[351624275,1738668648538,-500.0,9.444e-05,2]
[351624276,1738668648548,-500.0,9.444e-05,2]
[351624277,1738668648558,-990.68,9.444e-05,2]
[351624278,1738668648568,-500.0,9.444e-05,2]
[351624279,1738668648578,-630.8,9.444e-05,2]
[351624280,1738668648588,-843.93,9.444e-05,2]
[351624281,1738668648598,-500.0,9.444e-05,2]
[351624282,1738668648607,-622.66,9.444e-05,2]
[351624283,1738668648617,-500.0,9.444e-05,2]
[351624284,1738668648626,-500.0,9.444e-05,2]
[351624285,1738668648636,-756.2,9.444e-05,2]
[351624286,1738668648646,-988.0,9.444e-05,2]
[351624287,1738668648656,-500.0,9.444e-05,2]
[351624288,1738668648666,-594.03,9.444e-05,2]
[351624289,1738668648675,-500.0,9.444e-05,2]
[351624290,1738668648686,-657.74,9.444e-05,2]
[351624291,1738668648696,-500.0,9.444e-05,2]
[351624292,1738668648705,-500.0,9.444e-05,2]
[351624293,1738668648715,-468.66470425,9.444e-05,2]
[351624294,1738668649359,-31.33529575,9.444e-05,2]
[351624295,1738668649369,-287.1,9.444e-05,2]
[351624296,1738668649379,-661.28,9.444e-05,2]
[351624297,1738668649389,-558.24,9.444e-05,2]
[351624298,1738668649399,-743.93,9.444e-05,2]
[351624299,1738668649408,-757.05,9.444e-05,2]
[351624300,1738668649417,-500.0,9.444e-05,2]
[351624301,1738668649428,-959.51,9.444e-05,2]
[351624302,1738668649438,-500.0,9.444e-05,2]
[351624303,1738668649447,-500.0,9.444e-05,2]
[351624304,1738668649457,-574.52,9.444e-05,2]
[351624305,1738668649467,-676.14,9.444e-05,2]
[351624306,1738668649477,-500.0,9.444e-05,2]
[351624307,1738668649486,-539.88,9.444e-05,2]
[351624308,1738668649495,-500.0,9.444e-05,2]
[351624309,1738668649505,-500.0,9.444e-05,2]
[351624310,1738668649515,-500.0,9.444e-05,2]
[351624311,1738668649524,-500.0,9.444e-05,2]
[351624312,1738668649533,-706.57191725,9.444e-05,2]
[351624313,1738668649549,-445.76808275,9.444e-05,2]
[351624314,1738668649559,-500.0,9.444e-05,2]
[351624315,1738668649568,-500.0,9.444e-05,2]
[351624316,1738668649578,-543.63241023,9.444e-05,2]
[351624317,1738668649590,-48.33758977,9.444e-05,2]
[351624318,1738668649600,-500.0,9.444e-05,2]
[351624319,1738668649610,-500.0,9.444e-05,2]
[351624320,1738668649619,-563.64,9.444e-05,2]
[351624321,1738668649629,-500.0,9.444e-05,2]
[351624322,1738668649638,-501.42,9.444e-05,2]
[351624323,1738668649648,-1741.61,9.444e-05,2]
[351624324,1738668649658,-500.0,9.444e-05,2]
[351624325,1738668649667,-500.0,9.444e-05,2]
[351624326,1738668649677,-500.0,9.444e-05,2]
[351624327,1738668649687,-747.15062726,9.444e-05,2]
[351624328,1738668649715,-500.0,9.033e-05,2]
[351624329,1738668649724,-233.13937274,9.444e-05,2]
[351624330,1738668649734,-581.03,9.444e-05,2]
[351624331,1738668649743,-500.0,9.445e-05,2]
[351624332,1738668649752,-500.0,9.445e-05,2]
[351624333,1738668649762,-500.0,9.445e-05,2]
[351624334,1738668649772,-500.0,9.445e-05,2]
[351624335,1738668649781,-500.0,9.445e-05,2]
[351624336,1738668649791,-500.0,9.445e-05,2]
[351624337,1738668649800,-500.0,9.445e-05,2]
[351624338,1738668649811,-500.0,9.445e-05,2]
[351624339,1738668649823,-500.0,9.445e-05,2]
[351624340,1738668649833,-500.0,9.445e-05,2]
[351624341,1738668649844,-500.0,9.445e-05,2]
[351624342,1738668649854,-500.0,9.445e-05,2]
[351624343,1738668649864,-500.0,9.445e-05,2]
[351624344,1738668649874,-500.0,9.445e-05,2]
[351624345,1738668649884,-500.0,9.445e-05,2]
[351624346,1738668649895,-500.0,9.445e-05,2]
[351624347,1738668649905,-1036.12,9.445e-05,2]
[351624348,1738668649917,-646.32,9.445e-05,2]
[351624349,1738668649928,-500.0,9.445e-05,2]
[351624350,1738668649943,-680.94,9.445e-05,2]
[351624351,1738668649953,-500.0,9.445e-05,2]
[351624352,1738668649965,-500.0,9.445e-05,2]
[351624353,1738668649978,-500.0,9.445e-05,2]
[351624354,1738668649988,-592.48,9.445e-05,2]
[351624355,1738668649998,-500.0,9.445e-05,2]
[351624356,1738668650010,-500.0,9.445e-05,2]
[351624357,1738668650020,-500.0,9.445e-05,2]
[351624358,1738668650029,-500.0,9.445e-05,2]
[351624359,1738668650039,-500.0,9.445e-05,2]
[351624360,1738668650050,-500.0,9.445e-05,2]
[351624361,1738668650061,-500.0,9.445e-05,2]
[351624362,1738668650070,-500.0,9.445e-05,2]
[351624363,1738668650080,-500.0,9.445e-05,2]
[351624364,1738668650089,-500.0,9.445e-05,2]
[351624365,1738668650099,-511.56,9.445e-05,2]
[351624366,1738668650108,-78.61062726,9.445e-05,2]
[351624367,1738668650391,-421.38937274,9.445e-05,2]
[351624368,1738668650401,-709.22,9.445e-05,2]
[351624369,1738668650411,-500.0,9.445e-05,2]
[351624370,1738668650421,-500.0,9.445e-05,2]
[351624371,1738668650434,-500.0,9.445e-05,2]
[351624372,1738668650444,-500.0,9.445e-05,2]
[351624373,1738668650454,-500.0,9.445e-05,2]
[351624374,1738668650463,-500.0,9.445e-05,2]
[351624375,1738668650473,-500.0,9.445e-05,2]
[351624376,1738668650483,-500.0,9.445e-05,2]
[351624377,1738668650492,-500.0,9.446e-05,2]
[351624378,1738668650502,-500.0,9.446e-05,2]
[351624379,1738668650512,-500.0,9.446e-05,2]